bitfinex/quotes_SOLUSD_20241105
["timestamp","ask_amount","ask_price","bid_price","bid_amount"]
[1730774720935,10.98625423,158.55,158.5,22.3900708]
[1730774721156,10.98625423,158.55,158.51,2.28311429]
[1730774721438,20.0,158.53,158.5,22.3900708]
[1730774721622,30.98625423,158.53,158.51,2.28349622]
[1730774721823,30.98625423,158.53,158.5,16.0810708]
[1730774722236,10.98625423,158.51,158.5,0.3082708]
[1730774722444,30.98625423,158.51,158.5,0.3082708]
[1730774723021,20.0,158.51,158.5,0.3082708]
[1730774723239,6.3079,158.53,158.47,10.98625423]
[1730774723240,20.0,158.5,158.47,10.98625423]
[1730774723744,17.29385423,158.54,158.48,10.98625423]
[1730774724042,20.0,158.53,158.48,10.98625423]
[1730774724221,37.29435423,158.53,158.48,10.98625423]
[1730774724642,37.29435423,158.53,158.47,10.98625423]
[1730774724821,37.29435423,158.53,158.48,2.28280773]
[1730774725022,37.29435423,158.53,158.47,10.98625423]
[1730774725222,37.29435423,158.53,158.48,2.28281293]
[1730774725431,10.98625423,158.52,158.47,10.98625423]
[1730774725634,17.29505423,158.51,158.46,33.07375423]
[1730774725845,6.3088,158.51,158.47,2.28206198]
[1730774726046,17.29505423,158.51,158.46,22.0875]
[1730774726233,17.29505423,158.51,158.47,2.28191619]
[1730774726532,20.0,158.5,158.46,22.0875]
[1730774726728,20.0,158.5,158.47,2.2817884]
[1730774726928,20.0,158.5,158.46,15.7768]
[1730774727746,20.0,158.5,158.46,22.0875]
[1730774729835,20.0,158.5,158.46,15.7768]
[1730774730047,26.3091,158.5,158.46,15.7768]
[1730774730651,27.8884,158.43,158.36,6.3147]
[1730774730950,27.8884,158.43,158.38,10.98625423]
[1730774731142,27.8884,158.43,158.39,10.98625423]
[1730774731327,27.8884,158.43,158.37,6.3139]
[1730774731962,27.8884,158.43,158.38,6.3139]
[1730774732337,38.87465423,158.43,158.37,10.98625423]
[1730774732534,45.18655423,158.43,158.37,17.30055423]
[1730774733367,45.18655423,158.43,158.36,10.98625423]
[1730774733655,45.18655423,158.43,158.35,26.77365423]
[1730774734655,69.08892823,158.43,158.34,17.61002503]
[1730774735755,69.08892823,158.43,158.35,17.30095423]
[1730774735756,45.18655423,158.43,158.35,17.30095423]
[1730774736255,45.18655423,158.43,158.36,6.3144]
[1730774737159,56.17280923,158.43,158.36,6.3144]
[1730774742246,56.17280923,158.43,158.35,10.98625423]
[1730774742454,56.17280923,158.43,158.36,17.30065423]
[1730774743265,56.17280923,158.43,158.36,6.3144]
[1730774743660,36.17280923,158.43,158.38,10.98625423]
[1730774743963,36.17280923,158.43,158.38,6.3138]
[1730774745040,56.17280923,158.43,158.38,6.3138]
[1730774746746,7.8884,158.43,158.39,10.98625423]
[1730774746941,7.8884,158.43,158.42,6.6205708]
[1730774747460,7.8884,158.43,158.42,0.3082708]
[1730774758570,18.87465423,158.43,158.42,0.3082708]
[1730774758771,25.18655423,158.43,158.42,0.3082708]
[1730774759554,18.87465423,158.43,158.42,0.3082708]
[1730774760446,25.18655423,158.43,158.42,0.3082708]
[1730774760665,45.18655423,158.43,158.42,0.3082708]
[1730774761868,37.29815423,158.43,158.42,0.3082708]
[1730774767473,20.0,158.43,158.42,0.3082708]
[1730774767956,20.0,158.44,158.42,0.3082708]
[1730774768288,20.0,158.44,158.42,6.6204708]
[1730774768569,30.98625423,158.45,158.42,0.3082708]
[1730774768776,10.98625423,158.44,158.42,0.3082708]
[1730774769469,10.98625423,158.43,158.42,0.3082708]
[1730774769771,17.29775423,158.44,158.42,0.3082708]
[1730774770458,10.98625423,158.44,158.42,0.3082708]
[1730774771670,30.98625423,158.45,158.42,0.3082708]
[1730774771878,10.98625423,158.49,158.43,10.98625423]
[1730774774672,20.0,158.47,158.42,33.38732503]
[1730774776274,30.98625423,158.47,158.42,33.38732503]
[1730774776452,10.98625423,158.46,158.42,0.3082708]
[1730774776659,10.98625423,158.45,158.42,0.3082708]
[1730774778653,10.98625423,158.44,158.42,0.3082708]
[1730774779376,30.98625423,158.43,158.42,0.3082708]
[1730774781069,37.29815423,158.43,158.42,0.3082708]
[1730774781584,61.20052823,158.43,158.42,0.3082708]
[1730774782583,67.78253362,158.43,158.42,0.3082708]
[1730774788063,20.0,158.42,158.34,6.4319416]
[1730774788269,10.98625423,158.39,158.34,6.4319416]
[1730774788467,20.0,158.38,158.34,6.4319416]
[1730774788680,20.0,158.38,158.34,17.41819583]
[1730774790390,30.98625423,158.38,158.34,6.4319416]
[1730774791780,20.0,158.38,158.34,6.4319416]
[1730774791967,30.98625423,158.38,158.34,6.4319416]
[1730774792165,30.98625423,158.38,158.34,0.1165416]
[1730774792390,10.98625423,158.36,158.34,0.1165416]
[1730774793488,6.3151,158.35,158.34,0.1165416]
[1730774794292,26.3151,158.35,158.34,0.1165416]
[1730774796277,20.0,158.34,158.32,15.6721416]
[1730774797175,20.0,158.35,158.32,15.6721416]
[1730774799679,20.0,158.35,158.31,6.3164]
[1730774801688,20.0,158.35,158.32,10.98625423]
[1730774802773,20.0,158.37,158.32,33.09295423]
[1730774803395,30.98625423,158.37,158.32,22.1067]
[1730774804297,37.30055423,158.37,158.32,22.1067]
[1730774805796,26.3143,158.37,158.31,10.98625423]
[1730774805995,20.0,158.35,158.31,17.30285423]
[1730774806380,20.0,158.35,158.31,10.98625423]
[1730774806698,37.30025423,158.38,158.32,10.98625423]
[1730774808099,20.0,158.38,158.33,10.98625423]
[1730774808288,20.0,158.38,158.34,10.98625423]
[1730774808492,20.0,158.39,158.34,10.98625423]
[1730774809084,10.98625423,158.38,158.33,10.98625423]
[1730774809899,10.98625423,158.38,158.34,6.3155]
[1730774811487,37.30005423,158.39,158.34,6.3155]
[1730774812399,37.30005423,158.39,158.34,10.98625423]
[1730774812998,20.0,158.39,158.35,10.98625423]
[1730774813293,20.0,158.4,158.35,10.98625423]
[1730774813599,30.98625423,158.4,158.35,10.98625423]
[1730774814503,37.29945423,158.4,158.35,6.3147]
[1730774815603,10.98625423,158.39,158.35,6.3147]
[1730774815903,30.98625423,158.38,158.35,6.3147]
[1730774816303,20.0,158.38,158.35,6.3147]
[1730774819410,6.3143,158.37,158.34,15.1195]
[1730774819577,37.30025423,158.38,158.32,17.30225423]
[1730774819780,20.0,158.38,158.33,10.98625423]
[1730774821108,20.0,158.38,158.34,6.3155]
[1730774822111,37.30035423,158.38,158.33,6.3158]
[1730774822284,37.30035423,158.38,158.33,22.1056]
[1730774823587,26.3141,158.38,158.33,26.77605423]
[1730774824089,37.30035423,158.38,158.33,15.7898]
[1730774824711,37.30035423,158.38,158.33,22.1057]
[1730774830221,20.0,158.36,158.33,15.7898]
[1730774830555,20.0,158.34,158.3,22.1091]
[1730774831081,20.0,158.34,158.3,33.09535423]
[1730774831300,20.0,158.35,158.31,10.98625423]
[1730774831494,20.0,158.36,158.31,17.30285423]
[1730774831704,20.0,158.34,158.31,17.30285423]
[1730774834202,30.98625423,158.35,158.3,15.7924]
[1730774834400,6.3158,158.34,158.3,22.1095]
[1730774834816,17.30205423,158.34,158.3,15.7924]
[1730774835397,6.3158,158.34,158.3,15.7924]
[1730774835600,26.3152,158.35,158.3,33.09575423]
[1730774836008,37.30145423,158.35,158.3,22.1095]
[1730774836416,26.3152,158.35,158.3,33.09575423]
[1730774836606,20.0,158.35,158.3,33.09575423]
[1730774841517,37.30145423,158.35,158.29,10.98625423]
[1730774842404,10.98625423,158.34,158.28,11.11174423]
[1730774842626,10.98625423,158.34,158.29,22.1112]
[1730774843702,20.0,158.33,158.29,22.1112]
[1730774850028,20.0,158.33,158.29,26.77995423]
[1730774851018,20.0,158.33,158.29,33.09745423]
[1730774851620,20.0,158.33,158.29,22.1112]
[1730774852221,20.0,158.33,158.29,26.77995423]
[1730774852613,20.0,158.33,158.29,15.7937]
[1730774853631,20.0,158.33,158.29,22.1112]
[1730774855309,10.98625423,158.31,158.28,6.3179]
[1730774855510,10.98625423,158.3,158.26,22.4230708]
[1730774855709,20.0,158.29,158.26,22.4230708]
[1730774856420,20.0,158.29,158.26,0.3082708]
[1730774856620,37.30405423,158.29,158.26,0.3082708]
[1730774858643,20.0,158.27,158.26,0.3082708]
[1730774860031,30.98625423,158.27,158.26,0.3082708]
[1730774860247,20.0,158.27,158.26,0.3082708]
[1730774862926,37.30455423,158.27,158.26,0.3082708]
[1730774865742,43.96055423,158.27,158.26,0.3082708]
[1730774870842,67.86292823,158.27,158.26,0.3082708]
[1730774873634,93.17335123,158.27,158.26,0.3082708]
[1730774875632,15.36217261,158.3,158.26,0.3082708]
[1730774875633,17.30415423,158.28,158.26,0.3082708]
[1730774875834,10.98625423,158.27,158.26,0.3082708]
[1730774877130,30.98625423,158.27,158.26,0.3082708]
[1730774877756,10.98625423,158.29,158.26,0.3082708]
[1730774877945,10.98625423,158.28,158.26,0.3082708]
[1730774879157,20.0,158.27,158.26,0.3082708]
[1730774882059,26.3183,158.27,158.26,0.3082708]
[1730774884039,20.0,158.27,158.26,0.3082708]
[1730774885851,37.30455423,158.27,158.26,0.3082708]
[1730774900069,61.45790823,158.27,158.26,0.3082708]
[1730774905564,61.45790823,158.27,158.18,0.3082708]
[1730774905565,121.19862515,158.27,158.18,0.3082708]
[1730774905766,10.98625423,158.19,158.18,0.3082708]
[1730774905960,72.8208836,158.27,158.18,0.3082708]
[1730774905961,10.98625423,158.21,158.18,0.3082708]
[1730774906168,20.0,158.2,158.18,6.6300708]
[1730774906562,30.98625423,158.2,158.18,6.6300708]
[1730774906784,10.98625423,158.21,158.18,6.6300708]
[1730774907182,20.0,158.2,158.18,6.6300708]
[1730774908072,30.98625423,158.22,158.18,6.6300708]
[1730774908278,30.98625423,158.22,158.18,0.3082708]
[1730774908472,37.30685423,158.22,158.18,0.3082708]
[1730774910384,37.30685423,158.22,158.18,6.6300708]
[1730774910588,30.98625423,158.22,158.18,6.6300708]
[1730774911594,37.30655423,158.22,158.18,6.6300708]
[1730774913875,20.0,158.22,158.18,17.61632503]
[1730774914296,20.0,158.22,158.18,6.6300708]
[1730774916100,45.312885,158.22,158.18,6.6300708]
[1730774916471,51.633285,158.22,158.18,0.3082708]
[1730774917999,51.633285,158.22,158.18,17.61632503]
[1730774919491,51.633285,158.22,158.18,11.29452503]
[1730774920096,51.633285,158.22,158.18,0.3082708]
[1730774920908,30.98625423,158.19,158.18,0.3082708]
[1730774921979,54.88862823,158.19,158.18,0.3082708]
[1730774922194,61.21012823,158.19,158.18,0.3082708]
[1730774923123,67.76508077,158.19,158.18,0.3082708]
[1730774925591,68.01606077,158.19,158.18,0.3082708]
[1730774929101,67.76508077,158.19,158.18,0.3082708]
[1730774929422,61.21012823,158.19,158.18,0.3082708]
[1730774931704,67.76361945,158.19,158.18,0.3082708]
[1730774931915,61.21012823,158.19,158.18,0.3082708]
[1730774933624,37.30775423,158.19,158.18,0.3082708]
[1730774937215,20.0,158.19,158.18,0.3082708]
[1730774942205,49.17233397,158.22,158.18,0.3082708]
[1730774942409,10.98625423,158.21,158.18,0.3082708]
[1730774942812,42.61943923,158.22,158.18,0.3082708]
[1730774943603,20.0,158.21,158.18,17.61622503]
[1730774943918,20.0,158.23,158.19,10.98625423]
[1730774944112,37.616225,158.23,158.19,10.98625423]
[1730774944310,48.60247923,158.23,158.18,33.42092503]
[1730774944513,37.616225,158.23,158.18,33.42092503]
[1730774945639,43.936225,158.23,158.18,33.42092503]
[1730774946133,54.92247923,158.23,158.18,33.42092503]
[1730774946924,10.98625423,158.22,158.18,16.1129708]
[1730774947138,30.98625423,158.21,158.18,0.3082708]
[1730774947735,20.0,158.21,158.18,0.3082708]
[1730774949334,26.3207,158.21,158.18,0.3082708]
[1730774951051,6.3191,158.25,158.2,10.98625423]
[1730774951544,10.986254,158.24,158.2,10.98625423]
[1730774952339,20.0,158.23,158.19,22.1248]
[1730774952514,26.3199,158.23,158.19,15.8037]
[1730774952718,10.98625423,158.22,158.18,0.3082708]
[1730774952913,20.0,158.21,158.18,0.3082708]
[1730774953645,30.98625423,158.21,158.18,0.3082708]
[1730774953831,20.0,158.19,158.18,0.3082708]
[1730774958335,20.0,158.19,158.18,0.0925866]
[1730774966943,20.0,158.19,158.18,17.40074083]
[1730774968349,20.0,158.19,158.18,6.4144866]
[1730774970268,20.0,158.19,158.18,0.0925866]
[1730774977160,20.0,158.19,158.18,11.07884083]
[1730774979346,20.0,158.19,158.18,0.0925866]
[1730774979951,20.0,158.19,158.18,11.07884083]
[1730774980643,20.0,158.19,158.18,0.0925866]
[1730774983670,33.78915423,158.25,158.18,11.07884083]
[1730774983867,6.3195,158.24,158.2,10.98625423]
[1730774984167,6.3187,158.26,158.21,10.98625423]
[1730774984343,6.3183,158.27,158.22,10.98625423]
[1730774984547,12.86477139,158.28,158.25,10.98625423]
[1730774984763,6.3179,158.28,158.25,10.98625423]
[1730774984946,6.0436,158.3,158.25,10.98625423]
[1730774985264,6.3167,158.31,158.26,10.98625423]
[1730774985571,17.30295423,158.31,158.26,10.98625423]
[1730774986970,20.0,158.3,158.25,17.30525423]
[1730774987373,37.30375423,158.3,158.25,10.98625423]
[1730774987562,30.98625423,158.28,158.22,17.30645423]
[1730774988181,20.0,158.28,158.23,10.98625423]
[1730774988460,20.0,158.28,158.23,11.07884083]
[1730774988659,26.318,158.28,158.23,11.07884083]
[1730774989051,37.30425423,158.28,158.23,11.07884083]
[1730774989549,26.318,158.28,158.23,11.07884083]
[1730774989757,37.30425423,158.28,158.23,11.07884083]
[1730774990071,26.318,158.28,158.23,11.07884083]
[1730774991575,26.318,158.28,158.24,10.98625423]
[1730774994890,20.0,158.29,158.26,10.98625423]
[1730774995170,20.0,158.3,158.25,10.98625423]
[1730774995957,26.3172,158.3,158.25,17.30525423]
[1730774996375,37.30345423,158.3,158.25,17.30525423]
[1730774997068,37.30345423,158.3,158.24,33.10445423]
[1730774997471,37.30345423,158.3,158.25,10.98625423]
[1730774998578,37.30345423,158.3,158.24,33.10445423]
[1730775003285,20.0,158.27,158.24,33.10445423]
[1730775003664,20.0,158.27,158.24,33.19704083]
[1730775005271,20.0,158.28,158.24,33.19704083]
[1730775006487,6.318,158.28,158.24,33.19704083]
[1730775006689,20.0,158.27,158.24,33.19704083]
[1730775007889,27.06255423,158.33,158.26,10.98625423]
[1730775008080,16.0763,158.33,158.28,10.98625423]
[1730775008281,17.01455423,158.34,158.28,10.98625423]
[1730775009162,26.3161,158.33,158.28,17.30405423]
[1730775009578,6.3161,158.33,158.29,10.98625423]
[1730775010090,34.805832,158.37,158.29,10.98625423]
[1730775010091,10.98625423,158.36,158.31,10.98625423]
[1730775010273,10.98625423,158.38,158.32,10.98625423]
[1730775010595,10.98625423,158.38,158.29,24.153354]
[1730775010596,6.3139,158.38,158.33,10.98625423]
[1730775011598,6.3139,158.38,158.31,26.77735423]
[1730775011766,10.98625423,158.35,158.3,6.317]
[1730775011966,20.0,158.34,158.3,6.317]
[1730775012778,20.0,158.34,158.3,17.30325423]
[1730775012982,20.0,158.34,158.3,10.98625423]
[1730775013186,20.0,158.35,158.3,17.30325423]
[1730775014402,26.3152,158.35,158.3,17.30325423]
[1730775014566,26.3152,158.35,158.31,10.98625423]
[1730775014894,6.1058,158.39,158.33,10.98625423]
[1730775014895,20.0,158.37,158.33,10.98625423]
[1730775015994,37.30055423,158.37,158.32,17.30235423]
[1730775016190,37.30055423,158.37,158.32,6.3161]
[1730775018229,37.30055423,158.37,158.32,10.98625423]
[1730775019692,37.30055423,158.37,158.32,17.30235423]
[1730775020301,26.3143,158.37,158.33,10.98625423]
[1730775020795,26.3143,158.37,158.32,33.09315423]
[1730775021594,20.0,158.37,158.32,33.09315423]
[1730775021775,20.0,158.37,158.33,10.98625423]
[1730775023025,20.0,158.38,158.35,11.11174423]
[1730775023300,6.3128,158.41,158.37,10.98625423]
[1730775023608,10.98625423,158.4,158.35,33.08775423]
[1730775023814,10.98625423,158.41,158.35,33.08775423]
[1730775024488,20.0,158.4,158.36,10.98625423]
[1730775024800,20.0,158.4,158.36,17.30085423]
[1730775025998,20.0,158.42,158.38,10.98625423]
[1730775026300,20.0,158.42,158.37,10.98625423]
[1730775026905,37.29875423,158.42,158.37,10.98625423]
[1730775027097,10.98625423,158.41,158.36,17.30055423]
[1730775027304,20.0,158.4,158.36,6.3143]
[1730775028104,20.0,158.4,158.36,17.30055423]
[1730775028304,20.0,158.41,158.36,17.30055423]
[1730775029705,30.98625423,158.41,158.36,17.30055423]
[1730775030977,30.98625423,158.41,158.36,33.08735423]
[1730775031593,37.29905423,158.41,158.36,33.08735423]
[1730775032699,26.3128,158.41,158.36,33.08735423]
[1730775036490,20.0,158.41,158.36,33.08735423]
[1730775040794,20.0,158.41,158.37,10.98625423]
[1730775042921,20.0,158.41,158.37,17.30035423]
[1730775046221,20.0,158.41,158.36,26.77305423]
[1730775048393,20.0,158.41,158.37,10.98625423]
[1730775048619,20.0,158.41,158.37,17.30035423]
[1730775050999,27.17595423,158.45,158.39,10.98625423]
[1730775051199,27.17595423,158.45,158.4,10.98625423]
[1730775051200,10.98625423,158.45,158.4,10.98625423]
[1730775051528,17.29735423,158.45,158.4,10.98625423]
[1730775051694,17.29735423,158.45,158.39,10.98625423]
[1730775051893,11.20270783,158.44,158.39,10.98625423]
[1730775052314,20.0,158.43,158.38,35.01411823]
[1730775052522,20.0,158.43,158.39,10.98625423]
[1730775053022,20.0,158.43,158.4,6.3131]
[1730775055628,20.2164536,158.44,158.4,6.3131]
[1730775057705,31.20270783,158.44,158.4,6.3131]
[1730775059628,31.20270783,158.44,158.38,35.01411823]
[1730775059815,31.20270783,158.44,158.39,22.0973]
[1730775062539,0.2164536,158.44,158.41,10.98625423]
[1730775062824,0.2164536,158.44,158.4,11.11174423]
[1730775063015,0.2164536,158.44,158.4,0.25098]
[1730775063420,0.2164536,158.44,158.41,6.3127]
[1730775063932,0.2164536,158.44,158.41,17.29895423]
[1730775064428,0.2164536,158.44,158.43,10.98625423]
[1730775064631,0.2164536,158.44,158.41,22.0945]
[1730775064842,0.2164536,158.44,158.41,33.08075423]
[1730775065322,0.2164536,158.44,158.41,26.76805423]
[1730775066531,0.2164536,158.44,158.41,33.08075423]
[1730775067516,0.2164536,158.44,158.43,10.98625423]
[1730775070032,0.2164536,158.44,158.42,10.98625423]
[1730775071227,0.2164536,158.44,158.42,17.29815423]
[1730775073148,0.2164536,158.44,158.43,10.98625423]
[1730775073322,0.2164536,158.44,158.42,33.07895423]
[1730775086953,0.2164536,158.44,158.43,17.54913423]
[1730775090059,0.2164536,158.44,158.43,10.98625423]
[1730775093998,0.2164536,158.44,158.42,26.76705423]
[1730775094499,0.2164536,158.44,158.43,10.98625423]
[1730775096805,0.2164536,158.44,158.42,33.07905423]
[1730775097111,31.20270783,158.44,158.39,15.7836]
[1730775098089,10.98625423,158.43,158.39,22.0971]
[1730775098475,37.51440783,158.44,158.39,22.0971]
[1730775098791,37.51440783,158.44,158.39,33.08335423]
[1730775099789,26.5281536,158.44,158.4,10.98625423]
[1730775101694,26.5281536,158.44,158.4,17.29925423]
[1730775102199,20.2164536,158.44,158.4,17.29925423]
[1730775103799,0.2164536,158.44,158.41,10.98625423]
[1730775104009,0.2164536,158.44,158.43,10.98625423]
[1730775108585,0.2164536,158.44,158.42,10.98625423]
[1730775109672,0.2164536,158.44,158.42,17.29835423]
[1730775110488,0.2164536,158.44,158.43,10.98625423]
[1730775113303,0.2164536,158.44,158.42,10.98625423]
[1730775115395,0.2164536,158.44,158.42,17.29835423]
[1730775116797,0.2164536,158.44,158.43,10.98625423]
[1730775117391,0.2164536,158.44,158.42,10.98625423]
[1730775118999,0.2164536,158.44,158.42,17.29845423]
[1730775120597,0.2164536,158.44,158.4,15.7828]
[1730775120598,0.2164536,158.44,158.43,10.98625423]
[1730775122276,0.2164536,158.44,158.42,13.27544714]
[1730775122598,0.2164536,158.44,158.42,17.29845423]
[1730775126086,0.2164536,158.44,158.43,10.98625423]
[1730775126771,0.2164536,158.44,158.42,10.98625423]
[1730775128086,0.2164536,158.44,158.43,10.98625423]
[1730775129700,0.2164536,158.44,158.42,17.29835423]
[1730775132503,0.2164536,158.44,158.43,10.98625423]
[1730775133372,0.2164536,158.44,158.42,6.3121]
[1730775133373,0.2164536,158.44,158.42,17.29835423]
[1730775139090,0.2164536,158.44,158.43,10.98625423]
[1730775139285,0.2164536,158.44,158.43,60.10540326]
[1730775139513,0.3090402,158.52,158.46,0.1]
[1730775139815,0.3090402,158.52,158.5,10.98625423]
[1730775140686,20.3090402,158.52,158.5,10.98625423]
[1730775141713,20.3090402,158.52,158.49,17.29575423]
[1730775146309,0.3090402,158.52,158.49,17.29575423]
[1730775146610,0.3090402,158.52,158.5,10.98625423]
[1730775149091,0.3090402,158.52,158.49,17.29575423]
[1730775149290,0.3090402,158.52,158.49,10.98625423]
[1730775149714,20.0,158.5,158.45,10.98625423]
[1730775149914,20.0,158.45,158.4,17.29895423]
[1730775150101,30.98625423,158.45,158.39,37.9135]
[1730775150416,20.0,158.45,158.39,38.0135]
[1730775150714,20.0,158.5,158.4,0.12549]
[1730775151026,20.0,158.48,158.41,22.0945]
[1730775151199,20.0,158.48,158.38,15.7846]
[1730775151394,20.0,158.44,158.39,10.98625423]
[1730775151716,20.0,158.43,158.39,10.98625423]
[1730775152810,20.0,158.44,158.39,10.98625423]
[1730775153012,20.0,158.44,158.4,10.98625423]
[1730775153221,20.0,158.44,158.41,10.98625423]
[1730775155731,20.0,158.44,158.36,10.98625423]
[1730775155732,10.98625423,158.42,158.36,10.98625423]
[1730775155913,10.98625423,158.4,158.36,2.28051457]
[1730775156129,10.98625423,158.4,158.34,17.30155423]
[1730775156707,10.98625423,158.4,158.34,10.98625423]
[1730775156919,30.98625423,158.39,158.33,33.09105423]
[1730775157636,20.0,158.39,158.34,10.98625423]
[1730775157812,30.98625423,158.39,158.34,6.3152]
[1730775159329,30.98625423,158.39,158.25,43.90464311]
[1730775159330,10.98625423,158.35,158.28,32.39015423]
[1730775159520,10.98625423,158.34,158.29,2.27824034]
[1730775159724,10.98625423,158.35,158.3,6.3171]
[1730775162131,17.30095423,158.36,158.3,33.09605423]
[1730775162320,20.0,158.36,158.31,10.98625423]
[1730775162720,20.0,158.36,158.32,10.98625423]
[1730775163819,20.0,158.36,158.33,10.98625423]
[1730775164035,20.0,158.38,158.34,10.98625423]
[1730775164232,20.0,158.38,158.34,17.30165423]
[1730775165717,20.0,158.38,158.34,6.3154]
[1730775166243,20.0,158.38,158.34,33.09045423]
[1730775166533,20.0,158.39,158.34,33.09045423]
[1730775168745,20.0,158.4,158.35,10.98625423]
[1730775169549,30.98625423,158.4,158.35,17.30105423]
[1730775172645,30.98625423,158.4,158.35,17.30105423]
[1730775172833,30.98625423,158.4,158.34,26.77505423]
[1730775173145,37.29935423,158.4,158.34,26.77505423]
[1730775174746,37.29935423,158.4,158.34,33.09055423]
[1730775176828,26.3131,158.4,158.35,10.98625423]
[1730775177951,37.29935423,158.4,158.35,6.3149]
[1730775179932,10.98625423,158.39,158.34,26.77505423]
[1730775180123,37.29935423,158.4,158.34,33.09055423]
[1730775181157,20.0,158.4,158.35,10.98625423]
[1730775181330,20.0,158.4,158.36,10.98625423]
[1730775182450,10.98625423,158.41,158.37,10.98625423]
[1730775182451,20.0,158.41,158.37,10.98625423]
[1730775183037,20.0,158.42,158.37,10.98625423]
[1730775183357,10.98625423,158.46,158.4,10.98625423]
[1730775183550,17.29655423,158.47,158.41,10.98625423]
[1730775183851,10.98625423,158.45,158.4,10.98625423]
[1730775184559,17.29715423,158.46,158.41,10.98625423]
[1730775184933,10.98625423,158.44,158.4,6.3127]
[1730775185650,37.29755423,158.45,158.4,22.0955]
[1730775187445,10.98625423,158.43,158.37,33.08595423]
[1730775187762,10.98625423,158.42,158.37,22.0997]
[1730775188636,10.98625423,158.42,158.37,33.08595423]
[1730775188952,10.98625423,158.4,158.34,43.22135423]
[1730775189165,10.98625423,158.4,158.35,10.98625423]
[1730775190366,10.98625423,158.38,158.34,22.104]
[1730775190656,10.98625423,158.36,158.32,6.3163]
[1730775191043,10.98625423,158.35,158.31,15.7914]
[1730775191246,10.98625423,158.34,158.31,15.7914]
[1730775191468,10.98625423,158.34,158.29,6.3175]
[1730775193662,20.0,158.34,158.3,10.98625423]
[1730775195081,47.62125423,158.37,158.31,10.98625423]
[1730775195255,6.3142,158.38,158.27,31.81699]
[1730775195256,20.0,158.36,158.33,10.98625423]
[1730775195449,20.0,158.36,158.32,10.98625423]
[1730775195646,20.0,158.37,158.32,10.98625423]
[1730775196169,20.0,158.37,158.32,17.30225423]
[1730775196544,37.30065423,158.37,158.32,17.30225423]
[1730775199287,26.3144,158.37,158.32,17.30225423]
[1730775201574,10.98625423,158.39,158.33,10.98625423]
[1730775201762,10.98625423,158.39,158.34,10.98625423]
[1730775201955,23.86225423,158.4,158.34,10.98625423]
[1730775202571,10.98625423,158.42,158.36,10.98625423]
[1730775202877,10.98625423,158.42,158.37,10.98625423]
[1730775203050,10.98625423,158.42,158.36,10.98625423]
[1730775203575,10.98625423,158.41,158.36,10.98625423]
[1730775203880,10.98625423,158.41,158.37,6.3143]
[1730775204579,10.98625423,158.41,158.36,22.1006]
[1730775204580,10.98625423,158.4,158.36,22.1006]
[1730775206070,20.0,158.4,158.36,10.98625423]
[1730775207161,20.0,158.4,158.36,17.30075423]
[1730775216295,20.0,158.41,158.36,33.08755423]
[1730775217705,20.0,158.41,158.37,10.98625423]
[1730775217996,20.0,158.41,158.36,10.98625423]
[1730775218377,20.0,158.42,158.37,10.98625423]
[1730775218576,17.29815423,158.43,158.38,10.98625423]
[1730775218577,20.0,158.43,158.38,10.98625423]
[1730775220277,20.0,158.43,158.39,6.3135]
[1730775227508,26.3119,158.43,158.39,6.3135]
[1730775237603,37.29815423,158.43,158.39,6.3135]
[1730775238282,10.98625423,158.41,158.35,26.77385423]
[1730775238487,10.98625423,158.4,158.36,6.3146]
[1730775239279,10.98625423,158.4,158.35,15.7876]
[1730775239483,10.98625423,158.39,158.35,15.7876]
[1730775239807,20.0,158.4,158.36,10.98625423]
[1730775240199,20.0,158.4,158.37,6.3143]
[1730775240504,20.0,158.41,158.37,6.3143]
[1730775241179,10.98625423,158.43,158.37,17.30055423]
[1730775241387,20.0,158.44,158.4,10.98625423]
[1730775241596,10.98625423,158.46,158.41,10.98625423]
[1730775242587,10.98625423,158.45,158.39,10.98625423]
[1730775243705,30.98625423,158.45,158.4,22.0959]
[1730775245533,20.0,158.45,158.4,26.76905423]
[1730775246327,10.98625423,158.44,158.4,15.7828]
[1730775246631,37.29745423,158.45,158.4,15.7828]
[1730775247524,37.29745423,158.45,158.4,22.0959]
[1730775249538,17.29785423,158.44,158.4,15.7828]
[1730775250840,6.3116,158.44,158.4,15.7828]
[1730775251333,20.0,158.46,158.42,10.98625423]
[1730775251523,20.0,158.46,158.42,17.29855423]
[1730775251722,20.0,158.46,158.42,33.07935423]